Cogmind - Beta 13 *** ADVENTURER MODE // 2024.03.18 @ 21:06:01 Player: skye Result: Destroyed by B-75 Beast with Magnetic Acceleration Cannon Performance ------------- Evolutions (3) 1500 Regions Visited (9) 1800 Robots Destroyed (59) 295 Value Destroyed (1589) 1589 Prototype IDs (9) 180 Alien Tech Used (0) 0 Bonus (13) 13 TOTAL SCORE: 5377 Bonus ------- High Alert Combat Kills 13 Cogmind --------- Core Integrity 0/700 Matter 111/300 Energy 66/100 System Corruption 2% Temperature Cool (12) Movement Core (50) Location -7/Lower Caves Parts ------- > --- POWER (2) -------- (None) > --- PROPULSION (4) --- VSS Leg > --- UTILITY (4) ------ Advanced Targeting Computer > --- WEAPON (3) ------- (None) > --- INVENTORY (5) ---- Light Nuclear Core Improved Sensor Array Remote Datajack Peak State ------------ > --- POWER ------------ Light Nuclear Core Light Nuclear Core > --- PROPULSION ------- VSS Leg VTOL Module VTOL Module Xenon Bombardment Thruster > --- UTILITY ---------- Improved Heat Sink Improved Signal Interpreter Kinecellerator Improved Light Armor Plating > --- WEAPON ----------- Beam Rifle Enhanced Autogun Gauss Rifle > --- INVENTORY -------- VSS Leg VSS Leg Gatling Laser Gatling Laser Improved Grenade Launcher [Rating: 41] Favorites ----------- Power Light Nuclear Core Engine Light Ion Engine Power Core Light Nuclear Core Propulsion Flight Unit Leg VSS Leg Wheel Compact Wheel Hover Unit Hover Unit Flight Unit Flight Unit Utility Signal Interpreter Device Improved Heat Sink Storage Small Storage Unit Processor Signal Interpreter Protection Core Shielding Weapon Light Assault Rifle Energy Gun Beam Rifle Ballistic Gun Light Assault Rifle Launcher Improved Grenade Launcher Special Weapon Mining Laser Slashing Weapon Ripper Build | -11 -10 -10 -10 -9 -8 -7 -7 -7 -7 ------- Run | Yrd Mat Min Exi Min Mat Fac Was Fac Low Slots Evolved 6 | . . . . . 4 2 . . . Power 1 | . . . . . . 1 . . . Propulsion 2 | . . . . . 2 . . . . Utility 2 | . . . . . 1 1 . . . Weapon 1 | . . . . . 1 . . . . Parts Attached 100 | 6 13 5 . 2 28 18 . 18 10 Power 16 | 1 3 . . . 6 2 . 4 . Engine 10 | 1 3 . . . 4 . . 2 . Core 6 | . . . . . 2 2 . 2 . Reactor . | . . . . . . . . . . Propulsion 29 | 2 4 3 . . 9 7 . 3 1 Treads . | . . . . . . . . . . Leg 6 | . . . . . 1 4 . . 1 Wheel 2 | 2 . . . . . . . . . Hover 1 | . . . . . 1 . . . . Flight 20 | . 4 3 . . 7 3 . 3 . Utility 16 | 1 2 . . . 3 6 . 4 . Device 8 | . . . . . 2 2 . 4 . Storage 1 | 1 . . . . . . . . . Processor 5 | . 1 . . . 1 3 . . . Hackware . | . . . . . . . . . . Protection 2 | . 1 . . . . 1 . . . Artifact . | . . . . . . . . . . Weapon 39 | 2 4 2 . 2 10 3 . 7 9 Energy Gun 9 | . 1 . . 1 1 1 . 4 1 Energy Cannon . | . . . . . . . . . . Ballistic Gun 20 | 2 3 2 . . 8 2 . 2 1 Ballistic Cannon . | . . . . . . . . . . Launcher 6 | . . . . . 1 . . 1 4 Special Weapon 3 | . . . . 1 . . . . 2 Impact Weapon . | . . . . . . . . . . Slashing Weapon 1 | . . . . . . . . . 1 Piercing Weapon . | . . . . . . . . . . Special Melee Weapon . | . . . . . . . . . . Unidentified Prototypes 2 | . . . . . 1 . . 1 . Parts Lost 27 | . . . . . 11 1 . 3 12 Power 4 | . . . . . 2 1 . . 1 Propulsion 11 | . . . . . 5 . . 2 4 Utility 5 | . . . . . 2 . . . 3 Weapon 7 | . . . . . 2 . . 1 4 Highest Loss Streak 6 | . . . . . 4 1 . 1 6 To Critical Strikes . | . . . . . . . . . . Average Slot Usage (%) 77 | . 77 100 100 100 70 69 69 85 38 Engine 7 | . 14 14 14 14 8 2 . 3 2 Core 2 | . . . . . . 6 7 9 1 Leg 2 | . . . . . 1 16 . . . Wheel 1 | . 12 . . . . . . . . Flight 18 | . 13 28 28 28 14 8 23 26 9 Device 7 | . . . . . 9 9 7 13 6 Processor 11 | . . 14 14 14 12 7 15 15 13 Protection 4 | . . 14 14 14 4 2 7 1 . Energy Gun 5 | . 5 14 14 6 3 3 . 4 . Ballistic Gun 11 | . 22 14 14 14 12 8 7 7 2 Naked Turns . | . . . . . . . . . . Heaviest Build 28 | 10 10 8 8 8 16 28 12 24 24 Greatest Support 48 | 32 32 8 8 8 16 48 14 24 24 Greatest Overweight (x) 2 | . 2 . . . 2 2 . 1 2 Average Overweight (x) . | . . . . . . . . . . Largest Inventory Capacity 8 | 8 8 5 5 5 5 5 5 5 5 Average Capacity 5 | 5 6 5 5 5 5 5 5 5 5 Most Carried 5 | . 5 5 5 5 5 5 5 5 5 Average Carried 4 | . 2 4 5 4 4 4 5 4 4 Final Capacity 8 | 8 5 5 5 5 5 5 5 5 5 Final Carried 5 | . 4 5 5 5 5 5 5 4 3 Class Distribution -------------------- 53% | Mutant 24% | Scavenger-Sprinter 11% | Scavenger-Mutant 4% | Scavenger-Gunner Dominant Class ---------------- Mutant | -10/Materials Mutant | -10/Mines Mutant | -10/Exiles Mutant | -9/Mines Mutant | -8/Materials Scavenger-Gunner | -7/Factory Scavenger-Sprinter | -7/Waste Scavenger-Sprinter | -7/Factory Mutant | -7/Lower Caves Resources | -11 -10 -10 -10 -9 -8 -7 -7 -7 -7 ----------- Run | Yrd Mat Min Exi Min Mat Fac Was Fac Low Matter Collected 1560 | 264 65 174 . 20 338 225 . 215 259 Remotely . | . . . . . . . . . . Salvage Created 2051 | 79 142 213 . . 578 179 . 720 140 Parts 134 | 2 20 19 . . 39 7 . 42 5 Haulers Intercepted . | . . . . . . . . . . Recyclers Shooed 1 | . 1 . . . . . . . . Parts Field Recycled . | . . . . . . . . . . Retrieved Matter . | . . . . . . . . . . Parts Self-Destructed 5 | . . . . . . . . . 5 Prevented . | . . . . . . . . . . Kills | -11 -10 -10 -10 -9 -8 -7 -7 -7 -7 ------- Run | Yrd Mat Min Exi Min Mat Fac Was Fac Low Combat Hostiles Destroyed 45 | . 6 12 . . 10 3 . 11 3 Guns 40 | . 6 12 . . 8 3 . 9 2 AOE 5 | . . . . . 2 . . 2 1 Classes Destroyed 11 | 1 2 1 . . 4 . . 3 . Worker 1 | . . . . . . . . 1 . Builder 2 | . . 1 . . . . . 1 . Tunneler 2 | . . . . . 2 . . . . Recycler 5 | 1 1 . . . . . . 3 . Operator 1 | . . . . . . . . 1 . Watcher 3 | . 1 . . . 2 . . . . Swarmer 21 | . 6 12 . . . . . 3 . Grunt 16 | . . . . . 5 2 . 6 3 Brawler 1 | . . . . . 1 . . . . Sentry 6 | . . . . . 4 1 . 1 . Hunter 1 | . . . . . . . . 1 . Best Kill Streak 14 | 1 7 14 . . 5 2 . 8 2 Combat Bots Only 12 | . 3 12 . . 3 2 . 4 2 Max Kills in Single Turn 2 | 1 1 2 . . 1 2 . 2 1 Gunslinging 1 | . . . . . . 1 . . . Exploded 2 | . . . . . 1 . . 2 1 Melee . | . . . . . . . . . . Uniques/NPCs Destroyed . | . . . . . . . . . . Combat | -11 -10 -10 -10 -9 -8 -7 -7 -7 -7 -------- Run | Yrd Mat Min Exi Min Mat Fac Was Fac Low Hostile Shots Fired 408 | . 55 24 . . 107 34 . 89 99 Missed 145 | . 14 7 . . 35 12 . 37 40 Damage Taken 3116 | . 281 98 . . 902 154 . 643 1038 Core 1060 | . 90 20 . . 245 44 . 102 559 Absorbed by Shields . | . . . . . . . . . . Redirected to Shielding 21 | . . 3 . . 18 . . . . Ignored by Resistances 897 | . 90 34 . . 255 47 . 185 286 Regen/Repaired (Parts) 15 | . 2 . . . 13 . . . . Core Remaining (%) 70 | 100 . . . 56 55 . . . . Volleys Fired 200 | 2 22 16 . 6 66 8 . 50 30 Largest 3 | 2 2 2 . 1 3 3 . 3 2 Hottest 111 | 40 76 76 . 100 99 109 . 111 65 Shots Fired 325 | 4 44 32 . 6 111 24 . 69 35 Gun 311 | 4 44 32 . . 110 24 . 68 29 Cannon . | . . . . . . . . . . Launcher 7 | . . . . . 1 . . 1 5 Special 7 | . . . . 6 . . . . 1 Kinetic 226 | 4 43 16 . . 74 16 . 52 21 Thermal 75 | . 1 16 . 6 36 8 . . 8 Explosive 7 | . . . . . 1 . . 1 5 Electromagnetic 16 | . . . . . . . . 16 . Robot Hit Streak 43 | 1 7 11 . . 26 4 . 43 8 Robot Miss Streak 4 | 2 4 1 . . 2 1 . 2 1 Penetration Max 1 | . . . . . . . . . 1 Secondary Targets 10 | . 1 5 . . 1 1 . 1 1 Max Gunslinging Chain 1 | . 1 1 . . 1 1 . 1 1 Shots Hit Robots 248 | 2 25 24 . . 90 17 . 61 29 Core Hits 123 | 2 12 15 . . 46 5 . 35 8 Critical Kills 1 | . . . . . . 1 . . . Critical Parts Destroyed 1 | . . 1 . . . . . . . Critical Strikes 8 | . . 4 . . 2 1 . . 1 Burn 5 | . . 3 . . 2 . . . . Destroy 2 | . . 1 . . . 1 . . . Sever 1 | . . . . . . . . . 1 Melee Attacks 1 | . . . . . . . . . 1 Impact . | . . . . . . . . . . Slashing 1 | . . . . . . . . . 1 Piercing . | . . . . . . . . . . Sneak Attacks . | . . . . . . . . . . Combat Hostiles . | . . . . . . . . . . Follow-up Attacks . | . . . . . . . . . . Damage Inflicted 4127 | 16 221 275 . . 1187 334 . 1359 735 Guns 3196 | 16 221 275 . . 961 334 . 945 444 Cannons . | . . . . . . . . . . Explosions 884 | . . . . . 223 . . 414 247 Melee 40 | . . . . . . . . . 40 Ramming 7 | . . . . . 3 . . . 4 Kinetic 2189 | 16 207 114 . . 526 261 . 730 335 Thermal 968 | . 14 161 . . 435 73 . 176 109 Explosive 599 | . . . . . 114 . . 238 247 Electromagnetic 324 | . . . . . 109 . . 215 . Impact . | . . . . . . . . . . Slashing 40 | . . . . . . . . . 40 Piercing . | . . . . . . . . . . Highest Corruption 7 | . . . . . 6 . 7 7 2 Average Corruption 5 | . . . . . 6 . 7 6 2 Corruption Purged 5 | . . . . . . . . 5 . Corruption Blocked . | . . . . . . . . . . Effects 26 | . . . . . 1 . 1 19 5 Message Errors 4 | . . . . . . . 1 3 . Matter Fused 8 | . . . . . . . . 6 2 Energy Discharges 3 | . . . . . . . . 2 1 Parts Fused 1 | . . . . . . . . 1 . Data Loss (minor) 5 | . . . . . 1 . . 4 . Data Loss (major) 2 | . . . . . . . . 2 . Misfires 1 | . . . . . . . . . 1 Weapon Failures 2 | . . . . . . . . 1 1 Overload Shots . | . . . . . . . . . . Overflow Damage 55 | . . . . . . . . 40 15 Projectiles . | . . . . . . . . . . Explosions 55 | . . . . . . . . 40 15 Melee . | . . . . . . . . . . Knockbacks . | . . . . . . . . . . Impact . | . . . . . . . . . . Kinetic . | . . . . . . . . . . Secondary . | . . . . . . . . . . Self-Inflicted Damage 158 | . . . . . 23 . . 108 27 Shots 4 | . . . . . 1 . . 2 1 Rammed 1 | . . . . . . . . . 1 Targets Rammed 2 | . . . . . 1 . . . 1 Kicked 1 | . . . . . 1 . . . . Crushed . | . . . . . . . . . . Highest Temperature 216 | . 42 216 . 102 204 190 . 44 16 Average Temperature 64 | . 12 93 . 50 69 76 . 9 6 Received Heat Transfer 1191 | . . . . . 567 87 . 231 306 Siege Activations . | . . . . . . . . . . Robots Corrupted . | . . . . . . . . . . Combat Hostiles . | . . . . . . . . . . Parts Fried . | . . . . . . . . . . Impact Corruptions . | . . . . . . . . . . Robots Melted . | . . . . . . . . . . Combat Hostiles . | . . . . . . . . . . Parts Melted 4 | . . 2 . . 2 . . . . Heat Transferred 2568 | . 37 629 . . 1258 185 . 200 259 Parts Sabotaged . | . . . . . . . . . . Parts Stolen . | . . . . . . . . . . Parts Stripped . | . . . . . . . . . . Power Chain Reactions 2 | . . . . . . . . 2 . Alert | -11 -10 -10 -10 -9 -8 -7 -7 -7 -7 ------- Run | Yrd Mat Min Exi Min Mat Fac Was Fac Low Peak Influence 422 | 5 188 285 . 5 204 120 80 422 . Initial 49 | . 2 . . . 1 7 35 49 . Average 125 | 2 91 244 . 3 71 59 66 265 . Maximum Alert Level 2 | . . 1 . . 1 . . 2 . Low Security (%) 71 | 100 100 19 . 100 86 100 100 22 . Level 1 25 | . . 80 . . 13 . . 62 . Level 2 3 | . . . . . . . . 14 . Level 3 . | . . . . . . . . . . Level 4 . | . . . . . . . . . . Level 5 . | . . . . . . . . . . High Security . | . . . . . . . . . . Max Security . | . . . . . . . . . . Squads Dispatched 9 | . . . . . 6 1 . 2 . Investigation 3 | . . . . . 2 1 . . . Extermination . | . . . . . . . . . . Reinforcement 4 | . . . . . 3 . . 1 . Assault . | . . . . . . . . . . Garrison 2 | . . . . . 1 . . 1 . Intercept . | . . . . . . . . . . Searches Triggered . | . . . . . . . . . . Construction Impeded 1 | . . . . . 1 . . . . Haulers Reinforced . | . . . . . . . . . . Active Scanning Responses . | . . . . . . . . . . Cargo Convoy Interrupts . | . . . . . . . . . . Stealth | -11 -10 -10 -10 -9 -8 -7 -7 -7 -7 --------- Run | Yrd Mat Min Exi Min Mat Fac Was Fac Low Distress Signals 3 | . . . . . 2 . . 1 . Communications Jammed . | . . . . . . . . . . Distress Signals . | . . . . . . . . . . Times Spotted 77 | . 10 9 . . 16 3 6 22 11 Peak Tracking Total 11 | . 3 3 . . 4 2 6 11 4 Tactical Retreats 5 | . . . . . . . . 3 2 Traps | -11 -10 -10 -10 -9 -8 -7 -7 -7 -7 ------- Run | Yrd Mat Min Exi Min Mat Fac Was Fac Low Traps Triggered 4 | . 3 . . . . 1 . . . Indirectly . | . . . . . . . . . . Trap Hack Attempts . | . . . . . . . . . . Triggered . | . . . . . . . . . . Disarmed . | . . . . . . . . . . Reprogrammed . | . . . . . . . . . . Reused . | . . . . . . . . . . Traps Extracted . | . . . . . . . . . . Installed . | . . . . . . . . . . Triggered . | . . . . . . . . . . Machines | -11 -10 -10 -10 -9 -8 -7 -7 -7 -7 ---------- Run | Yrd Mat Min Exi Min Mat Fac Was Fac Low Machines Disabled 6 | . . . . . 2 1 . 3 . Max in Single Turn 3 | . . . . . 2 1 . 3 . Machines Repaired . | . . . . . . . . . . Machines Dismantled . | . . . . . . . . . . Machines Sabotaged . | . . . . . . . . . . Overloaded Fab Kills . | . . . . . . . . . . Hacking | -11 -10 -10 -10 -9 -8 -7 -7 -7 -7 --------- Run | Yrd Mat Min Exi Min Mat Fac Was Fac Low Machines Accessed 17 | . 3 . 1 . 5 3 . 5 . Terminals 11 | . 2 . . . 3 2 . 4 . Fabricators 1 | . . . . . . 1 . . . Repair Stations 2 | . 1 . . . 1 . . . . Recycling Units 1 | . . . . . . . . 1 . Scanalyzers 1 | . . . . . 1 . . . . Garrison Access . | . . . . . . . . . . Total Hacks 60 | . 7 . 23 . 15 6 . 9 . Successful 54 | . 7 . 23 . 13 4 . 7 . Failed 6 | . . . . . 2 2 . 2 . Catastrophic . | . . . . . . . . . . Database Lockouts . | . . . . . . . . . . Manual 4 | . . . . . . 2 . 2 . Terminals 24 | . 5 . . . 6 5 . 8 . Fabricators 1 | . . . . . . 1 . . . Repair Stations 7 | . 2 . . . 5 . . . . Recycling Units 1 | . . . . . . . . 1 . Scanalyzers 4 | . . . . . 4 . . . . Garrison Access . | . . . . . . . . . . Terminal Hacks 44 | . 5 . 23 . 6 4 . 6 . Record 30 | . . . 23 . . 3 . 4 . Part Schematic 1 | . . . . . . . . 1 . Robot Analysis 1 | . . . . . 1 . . . . Prototype ID Bank 4 | . 1 . . . 3 . . . . Open DSF 1 | . . . . . . 1 . . . Branch Access Points 1 | . 1 . . . . . . . . Emergency Access Points 1 | . . . . . 1 . . . . Alert Level 3 | . 2 . . . . . . 1 . Locate Traps 1 | . . . . . 1 . . . . Reinforcement Status 1 | . 1 . . . . . . . . Fabricator Hacks . | . . . . . . . . . . Repair Station Hacks 5 | . 2 . . . 3 . . . . Scan Component 3 | . 1 . . . 2 . . . . Repair 2 | . 1 . . . 1 . . . . Recycling Unit Hacks 1 | . . . . . . . . 1 . Report Inventory 1 | . . . . . . . . 1 . Scanalyzer 4 | . . . . . 4 . . . . Insert Component 2 | . . . . . 2 . . . . Analyze 2 | . . . . . 2 . . . . Garrison Access Hacks . | . . . . . . . . . . Unauthorized Hacks . | . . . . . . . . . . Terminals . | . . . . . . . . . . Fabricators . | . . . . . . . . . . Repair Stations . | . . . . . . . . . . Recycling Units . | . . . . . . . . . . Scanalyzers . | . . . . . . . . . . Garrison Access . | . . . . . . . . . . Data Cores Recovered 1 | . . . . . . . . 1 . Used . | . . . . . . . . . . Hacking Detections 8 | . 1 . . . 5 . . 2 . Full Trace Events 1 | . . . . . 1 . . . . Feedback Events . | . . . . . . . . . . Feedback Blocked . | . . . . . . . . . . Robot Schematics Acquired . | . . . . . . . . . . Robots Built . | . . . . . . . . . . Authchips . | . . . . . . . . . . Time . | . . . . . . . . . . Total Robot Build Rating . | . . . . . . . . . . Part Schematics Acquired 3 | . . . . . 2 . . 1 . Parts Built . | . . . . . . . . . . Authchips . | . . . . . . . . . . Time . | . . . . . . . . . . Total Part Build Rating . | . . . . . . . . . . Parts Repaired 2 | . 1 . . . 1 . . . . Time 52 | . 26 . . . 26 . . . . Parts Recycled . | . . . . . . . . . . Recycled Matter . | . . . . . . . . . . Retrieved Matter . | . . . . . . . . . . Retrieved Components . | . . . . . . . . . . Parts Scanalyzed 2 | . . . . . 2 . . . . Part Schematics Acquired 2 | . . . . . 2 . . . . Parts Damaged . | . . . . . . . . . . Bothacking | -11 -10 -10 -10 -9 -8 -7 -7 -7 -7 ------------ Run | Yrd Mat Min Exi Min Mat Fac Was Fac Low Used RIF Installer . | . . . . . . . . . . Robots Hacked 1 | . . . . . . . . . 1 Non-combat . | . . . . . . . . . . Combat 1 | . . . . . . . . . 1 Robot Hacks Applied 1 | . . . . . . . . . 1 parse_system 1 | . . . . . . . . . 1 Relay Couplers Released . | . . . . . . . . . . Fabnet Peak Effective % . | . . . . . . . . . . Robots Rewired . | . . . . . . . . . . Allies Hacked . | . . . . . . . . . . Hacks Repelled . | . . . . . . . . . . Allies | -11 -10 -10 -10 -9 -8 -7 -7 -7 -7 -------- Run | Yrd Mat Min Exi Min Mat Fac Was Fac Low Total Allies 2 | . . 2 . . . . . . . Largest Group 2 | . . 2 2 . . . . . . Highest-Rated Group 51 | . . 51 51 . . . . . . Highest-Rated Ally 31 | . . 31 31 . . . . . . Total Orders . | . . . . . . . . . . Ally Attacks . | . . . . . . . . . . Total Damage . | . . . . . . . . . . Kills . | . . . . . . . . . . Allies Corrupted . | . . . . . . . . . . Allies Melted 1 | . . . . . . . . . 1 Intel | -11 -10 -10 -10 -9 -8 -7 -7 -7 -7 ------- Run | Yrd Mat Min Exi Min Mat Fac Was Fac Low Robot Analysis Total 1 | . . . . . 1 . . . . Derelict Logs Recovered 2 | . . 1 . 1 . . . . . Drone Launches . | . . . . . . . . . . Drone Recoveries . | . . . . . . . . . . Exploration | -11 -10 -10 -10 -9 -8 -7 -7 -7 -7 ------------- Run | Yrd Mat Min Exi Min Mat Fac Was Fac Low Turns Passed 3401 | 56 403 272 136 215 1035 343 32 677 232 Spaces Moved 5118 | 44 532 507 368 488 1105 421 105 1157 391 Core 73 | 4 . . . . 3 . . . 66 Treads . | . . . . . . . . . . Legs 378 | . . . . . 142 231 . . 5 Wheels 181 | 40 141 . . . . . . . . Hover 221 | . . . . . 210 11 . . . Flight 4265 | . 391 507 368 488 750 179 105 1157 320 Fastest Speed 27 | 50 37 37 37 37 31 30 30 27 27 Average Speed 46 | 95 54 37 37 37 66 65 30 28 39 Slowest Speed 214 | 100 200 37 37 37 190 214 30 114 195 Overloaded Moves . | . . . . . . . . . . Propulsion Burnouts . | . . . . . . . . . . Robots Hopped 34 | . 3 6 . 3 7 1 . 14 . Cave-ins Triggered . | . . . . . . . . . . Exploration Rate (%) 50 | 3 59 73 77 97 55 7 69 24 40 Regions Visited 9 Branch Regions 4 Pre-discovered Areas 2 | . . 1 1 . . . . . . Known Exits Taken 6 | . 1 1 1 1 1 . . 1 . Unknown Exits Taken 1 | 1 . . . . . . . . . Scrap Searched 3 | . . 2 . 1 . . . . . Spaces Dug 6 | . . . . 6 . . . . . Terrain Destroyed 74 | . . . . 6 6 . . 38 24 Melee . | . . . . . . . . . . Projectile 6 | . . . . 6 . . . . . AOE 68 | . . . . . 6 . . 38 24 Terrain Rammed . | . . . . . . . . . . Walls Destroyed . | . . . . . . . . . . Machines Disabled . | . . . . . . . . . . Actions | -11 -10 -10 -10 -9 -8 -7 -7 -7 -7 --------- Run | Yrd Mat Min Exi Min Mat Fac Was Fac Low Total 5857 | 51 610 557 367 500 1313 473 104 1441 441 Wait 372 | . 26 32 . 6 88 9 . 211 . Move 5043 | 43 525 494 367 481 1090 419 104 1129 391 Hop 33 | . 3 6 . 3 7 1 . 13 . Pick Up 26 | . 5 . . 1 8 5 . 6 1 Fast Attach 51 | 6 7 . . . 15 12 . 10 1 Attach 26 | . 1 . . . 7 5 . 5 8 Detach 26 | . 5 . . . 8 4 . 3 6 Swap 23 | . 5 5 . 2 6 1 . 3 1 Drop 54 | . 11 4 . 1 17 9 . 11 1 Fire 200 | 2 22 16 . 6 66 8 . 50 30 Melee 1 | . . . . . . . . . 1 Ram 1 | . . . . . . . . . 1 Kick 1 | . . . . . 1 . . . . Crush . | . . . . . . . . . . Escape Stasis . | . . . . . . . . . . Rewire . | . . . . . . . . . . Trap . | . . . . . . . . . . Miscellaneous . | . . . . . . . . . . Route ------- -11/Scrapyard -10/Materials (discovered 2 exits: *Mat / *Min) -10/Mines (discovered 2 exits: *Mat / *Exi) -10/Exiles (discovered 2 exits: *Min x2) -9/Mines (discovered 2 exits: *Mat x2) -8/Materials (discovered 3 exits: *Fac / *Sto x2) -7/Factory -7/Waste -7/Factory -7/Lower Caves History --------- Turn | Location | Event 18 | -11/Scrapyard | Discovered new exit (range 16) 57 | -11/Scrapyard | Entered Materials 227 | -10/Materials | Discovered new exit (range 7) 313 | -10/Materials | Discovered new exit (range 3) 349 | -10/Materials | Build established: Mutant 362 | -10/Materials | Repaired Flight Unit 382 | -10/Materials | Identified exit to Mines 460 | -10/Materials | Entered Mines 500 | -10/Mines | Learned location of 1 exit from Materials 533 | -10/Mines | Discovered new exit (range 6) 539 | -10/Mines | Identified exit to Materials 555 | -10/Mines | Destroyed 12 combat bots 557 | -10/Mines | Learned location of Storage (-8) 698 | -10/Mines | Deemed a non-threat by the Exiles lab entrance 698 | -10/Mines | Discovered new exit (range 5) 700 | -10/Mines | Identified exit to Exiles 732 | -10/Mines | Entered Exiles 732 | -10/Exiles | Accompanied by 2 allies 739 | -10/Exiles | Discovered new exit (range 15) 744 | -10/Exiles | Identified exit to Mines 751 | -10/Exiles | Met 8R-AWN 759 | -10/Exiles | Met EX-HEX 762 | -10/Exiles | Led the pair of lost Derelicts to a safe place 781 | -10/Exiles | Met EX-DEC 797 | -10/Exiles | Visited The Gauntlet 849 | -10/Exiles | Learned location of Zion (-6) 864 | -10/Exiles | Discovered exit to Mines (range 14) 868 | -10/Exiles | Entered Mines 878 | -9/Mines | Received a Rocket Launcher from a helpful Derelict 925 | -9/Mines | Met a Derelict bent on vengeance 956 | -9/Mines | Discovered new exit (range 5) 965 | -9/Mines | Identified exit to Materials 982 | -9/Mines | A weapon hastily lodged in a ceiling crevice suddenly fell to the ground 1009 | -9/Mines | Learned Materials terminal intel 1071 | -9/Mines | Discovered exit to Materials (range 4) 1083 | -9/Mines | Entered Materials 1083 | -8/Materials | Evolved 4 slots: Propulsion x2, Utility x1, Weapon x1 1084 | -8/Materials | Identified exit to Factory 1085 | -8/Materials | Loaded intel: 12 terminal locations 1110 | -8/Materials | Discovered new exit (range 10) 1122 | -8/Materials | Identified exit to Storage 1366 | -8/Materials | Lost 3 parts (1p1n1w) 1515 | -8/Materials | Discovered exit to Storage (range 16) 1715 | -8/Materials | Met 7R-MNS 1824 | -8/Materials | Lost 3 parts (1p2n) 1926 | -8/Materials | Repaired Flight Unit 2073 | -8/Materials | Garrison activated, responded to threat 2114 | -8/Materials | Lost 4 parts (1n2u1w) 2118 | -8/Materials | Entered Factory 2118 | -7/Factory | Evolved 2 slots: Power x1, Utility x1 2119 | -7/Factory | Caught up to 7R-MNS 2206 | -7/Factory | Discovered new exit (range 13) 2315 | -7/Factory | Identified exit to Factory 2461 | -7/Factory | Sucked down chute 2461 | -7/Factory | Entered Waste 2464 | -7/Waste | Spotted C-40 Crusher 2465 | -7/Waste | Spotted C-40 Crusher 2467 | -7/Waste | Spotted C-40 Crusher 2471 | -7/Waste | Spotted C-40 Crusher 2476 | -7/Waste | EMP discharged 2486 | -7/Waste | Spotted C-40 Crusher 2488 | -7/Waste | Discovered new exit (range 16) 2489 | -7/Waste | Spotted C-40 Crusher 2492 | -7/Waste | Identified exit to Factory 2493 | -7/Waste | Entered Factory 2714 | -7/Factory | Build established: Scavenger-Sprinter 2808 | -7/Factory | Discovered new exit (range 15) 2812 | -7/Factory | Identified exit to Lower Caves 3157 | -7/Factory | Garrison activated, responded to threat 3170 | -7/Factory | Entered Lower Caves 3248 | -7/Lower Caves | Spotted B-75 Beast 3261 | -7/Lower Caves | Encountered a Warlord checkpoint 3318 | -7/Lower Caves | Lost 6 parts (1p2n2u1w) 3352 | -7/Lower Caves | Core integrity fell below 50% 3373 | -7/Lower Caves | Core integrity fell below 20% 3398 | -7/Lower Caves | Lost 5 parts (1n1u3w) 3402 | -7/Lower Caves | Destroyed by B-75 Beast with Magnetic Acceleration Cannon Last Messages --------------- Grenade Launcher. System corrupted: Imp. Grenade Launcher misfires. [Achievement: Maybe Next Time I'll Detach My Launcher] Acquired 7 matter. Knocked back. Acquired 22 matter. Imp. Grenade Launcher destroyed. Imp. Signal Interpreter destroyed. Acquired 34 matter. Acquired 56 matter. Acquired Ripper. B-75 Beast Hvy. Machine Gun severed. Ripper destroyed. Critical hit (Blast). Knocked back. Slammed into B-75 Beast. Destabilizing: Core damaged (-21). System corrupted: Energy discharge (-31). Map ----- +----------------------------------------------------+ | ?????????????????????????????????????????????????? | | ?????????????????????????????????????????????????? | | ?????????????????????????????????????????????????? | | ?????????????????????????????????????????????????? | | ?????????????????????????????????????????????????? | | ?????????????????????????????????????????????????? | | ?????????????????????????????????????????????????? | | ?????????????????????????????????????????????????? | | ?????????????????????????????????????????????????? | | ?????????????????????????????????????????????????? | | ?????????????????????????????????????????????????? | | ?????????????????????????????????????????????????? | | ?????????????????????????????????????????????????? | | ?????????????????????????????????????????????????? | | ???????????????#####???????????????######????????? | | ??????????????## ##????????????##" ##???????? | | ??????????????# #??###????####"" #######?? | | ????????##???## ### #????# ## #?? | | ???????## #?## ## #????# #?? | | ?""???## ## #?????## #?? | | ?"" ## ##??????#### #####?? | | """ #?????????## #####?????? | | ####??????# #?????????? | | # #??????# ##?????????? | | ### # # #??????### #??????????? | | ????# # #######;@####????## #######????? | | ??????# # #?????## #??###" "# #????? | | ??????????## # ####### ##??#" #?#### | | ?????????## ##??## ##"## | | ?????????# ##?#" ### | | ?????????# ##### #?#" ## | | ?????????## ###??## ## #?#" % ## | | ??????????## ##???## #### #?## * | | ???????????##?????# #?## ### | | ??????????????????# #?# ;" ! ##### | | ??????????????????## #?# B [ # #???# | | ???????????????????####?## BB ### #???# | | ?????????????????????????## ####???# | | ??????????????????????????# ##?????? | | ??????????????????????????## ##????? | | ???????????????????????????### %###??? | | ?????????????????????????????### ##?? | | ???????????????????????????????## #?? | | ????????????????????????????????# ###" ##?? | | ?????????????????????????????? #??# ##??? | | ???????????????????????????? ?## ###???? | | ???????????????????????????# #" ####### | | ???????????????????????????# # | | ???????????????????????????# ### | | ???????????????????????????# ##?# ##### | +----------------------------------------------------+ Best States ------------- Heat Dissipation 61 Energy Generation 25 Energy Capacity 350 Matter Stores 300 Matter Capacity 300 Sight Range 20 Robot Scan Range 15 Terrain Scan Density 10 Additional Mass Support 6 Armor Coverage 150 Resistance: KI 20 Resistance: TH 20 Resistance: EX 20 Resistance: EM 20 Resistance: I 20 Resistance: S 20 Resistance: P 20 Core Shielding 20 Evasion (%) 64 Targeting Accuracy 8 Kinecelleration 30 Offensive Hacking 10 Item Schematics ----------------- Flight Unit | -8/Materials | Scanalyzed Autogun | -8/Materials | Scanalyzed Lrn. Proton Cannon | -7/Factory | Hacked Robot Schematics ------------------ None Fabricated ------------ Nothing Alien Tech Used ----------------- None Achievements -------------- Maybe Next Time I'll Detach My Launcher Challenges ------------ None Game ------ Seed ReactiveTransmissionOptics Manual? 0 Play Time 00:55:26 Cumulative 12.5 hours Start 2024.03.18 @ 20:10:16 End 2024.03.18 @ 21:06:01 Sessions 1 Manual Loads 0 Difficulty Adventurer Special Mode None Game No. 8 Rogue 0 Adventurer 8 Explorer 0 Win Type - Total 0 Types 0/0/0/0/0/0/0/0/0 Lore% 14 Gallery% 20 Achievement% 15 Wizard Run 0 Options --------- Layout 1 ASCII 0 Keyboard 1 Movement Vi Keybinds 0 Fullscreen 1 Font 24/Terminus Map View 50x40 Zoom Use 0% Tactical HUD 0 Map Filters NONE Filters NONE Steam 1 RUN: 7c94659f-e0b7-4f22-ac80-dfb425933046